{"text_format":"1","workbook":"xlsx","n_sheets":1,"sheets":["Pick a winner"],"not_rendered":{"charts":0,"images":1,"macros":1,"external_links":0,"defined_names":44,"comments":0,"pivot_tables":0},"unopened":[],"bounds":{"document_bytes":16777216,"sheet_cells":100000,"rows_first":2000,"rows_last":500,"rows_between":2000,"halvings":0,"cell_chars":16384,"cell_head_chars":4096},"cells_cut":0,"cells_raw":0,"read":"whole","date_system":"1900"}

{"sheet":"Pick a winner","index":0,"n_rows":32,"n_cols":7,"rows_kept":32,"cut":false,"hidden":false,"merged":[]}
[]
[null,null,"[ Client or Contest Name ] Contest Simulator 1.0"]
[null,null,"<= replace w/ client logo"]
[null,null,"Number of Simulations",10000]
[null,null,"Contest Winner =>",{"$f":"INDEX(tbl_entries[Name],MATCH(MAX(tbl_entries[Total Wins]),tbl_entries[Total Wins],0))","v":"Wanda Wright"}]
[]
[null,null,"Name","Random#","SimWin","Helper Wins","Total Wins"]
[null,null,"Albert Howard",{"$f":"RAND()","v":0.41979375573147282},{"$f":"--(tbl_entries[[#This Row],[Random'#]]=MAX(tbl_entries[Random'#]))","v":0},{"$f":"tbl_entries[[#This Row],[SimWin]]+tbl_entries[[#This Row],[Total Wins]]","v":402},402]
[null,null,"Amanda Wilson",{"$f":"RAND()","v":0.43610274003776672},{"$f":"--(tbl_entries[[#This Row],[Random'#]]=MAX(tbl_entries[Random'#]))","v":0},{"$f":"tbl_entries[[#This Row],[SimWin]]+tbl_entries[[#This Row],[Total Wins]]","v":392},392]
[null,null,"Barbara Cox",0.56856818915986485,{"$f":"--(tbl_entries[[#This Row],[Random'#]]=MAX(tbl_entries[Random'#]))","v":0},{"$f":"tbl_entries[[#This Row],[SimWin]]+tbl_entries[[#This Row],[Total Wins]]","v":397},397]
[null,null,"Betty Carter",0.8129570639071787,{"$f":"--(tbl_entries[[#This Row],[Random'#]]=MAX(tbl_entries[Random'#]))","v":0},{"$f":"tbl_entries[[#This Row],[SimWin]]+tbl_entries[[#This Row],[Total Wins]]","v":403},403]
[null,null,"Bruce Henderson",0.64249830992466339,{"$f":"--(tbl_entries[[#This Row],[Random'#]]=MAX(tbl_entries[Random'#]))","v":0},{"$f":"tbl_entries[[#This Row],[SimWin]]+tbl_entries[[#This Row],[Total Wins]]","v":389},389]
[null,null,"Christopher Watson",0.91512805755503424,{"$f":"--(tbl_entries[[#This Row],[Random'#]]=MAX(tbl_entries[Random'#]))","v":0},{"$f":"tbl_entries[[#This Row],[SimWin]]+tbl_entries[[#This Row],[Total Wins]]","v":362},362]
[null,null,"Daniel Collins",0.90524262428905733,{"$f":"--(tbl_entries[[#This Row],[Random'#]]=MAX(tbl_entries[Random'#]))","v":0},{"$f":"tbl_entries[[#This Row],[SimWin]]+tbl_entries[[#This Row],[Total Wins]]","v":411},411]
[null,null,"Debra Bell",0.29121606649140386,{"$f":"--(tbl_entries[[#This Row],[Random'#]]=MAX(tbl_entries[Random'#]))","v":0},{"$f":"tbl_entries[[#This Row],[SimWin]]+tbl_entries[[#This Row],[Total Wins]]","v":389},389]
[null,null,"Denise Parker",0.70757789159134898,{"$f":"--(tbl_entries[[#This Row],[Random'#]]=MAX(tbl_entries[Random'#]))","v":0},{"$f":"tbl_entries[[#This Row],[SimWin]]+tbl_entries[[#This Row],[Total Wins]]","v":392},392]
[null,null,"George Williams",0.88441537426784556,{"$f":"--(tbl_entries[[#This Row],[Random'#]]=MAX(tbl_entries[Random'#]))","v":0},{"$f":"tbl_entries[[#This Row],[SimWin]]+tbl_entries[[#This Row],[Total Wins]]","v":376},376]
[null,null,"Harry Diaz",0.84811311235611408,{"$f":"--(tbl_entries[[#This Row],[Random'#]]=MAX(tbl_entries[Random'#]))","v":0},{"$f":"tbl_entries[[#This Row],[SimWin]]+tbl_entries[[#This Row],[Total Wins]]","v":424},424]
[null,null,"Jean Griffin",0.64816790119953882,{"$f":"--(tbl_entries[[#This Row],[Random'#]]=MAX(tbl_entries[Random'#]))","v":0},{"$f":"tbl_entries[[#This Row],[SimWin]]+tbl_entries[[#This Row],[Total Wins]]","v":384},384]
[null,null,"Julie Hernandez",0.5535355708314309,{"$f":"--(tbl_entries[[#This Row],[Random'#]]=MAX(tbl_entries[Random'#]))","v":0},{"$f":"tbl_entries[[#This Row],[SimWin]]+tbl_entries[[#This Row],[Total Wins]]","v":411},411]
[null,null,"Kelly Perry",{"$f":"RAND()","v":0.14362974279435392},{"$f":"--(tbl_entries[[#This Row],[Random'#]]=MAX(tbl_entries[Random'#]))","v":0},{"$f":"tbl_entries[[#This Row],[SimWin]]+tbl_entries[[#This Row],[Total Wins]]","v":382},382]
[null,null,"Maria Morris",0.77092789186670208,{"$f":"--(tbl_entries[[#This Row],[Random'#]]=MAX(tbl_entries[Random'#]))","v":0},{"$f":"tbl_entries[[#This Row],[SimWin]]+tbl_entries[[#This Row],[Total Wins]]","v":421},421]
[null,null,"Paul Anderson",0.64574320041751487,{"$f":"--(tbl_entries[[#This Row],[Random'#]]=MAX(tbl_entries[Random'#]))","v":0},{"$f":"tbl_entries[[#This Row],[SimWin]]+tbl_entries[[#This Row],[Total Wins]]","v":425},425]
[null,null,"Randy Adams",0.93506434962015106,{"$f":"--(tbl_entries[[#This Row],[Random'#]]=MAX(tbl_entries[Random'#]))","v":1},{"$f":"tbl_entries[[#This Row],[SimWin]]+tbl_entries[[#This Row],[Total Wins]]","v":413},412]
[null,null,"Rebecca Ward",0.40689614165038701,{"$f":"--(tbl_entries[[#This Row],[Random'#]]=MAX(tbl_entries[Random'#]))","v":0},{"$f":"tbl_entries[[#This Row],[SimWin]]+tbl_entries[[#This Row],[Total Wins]]","v":391},391]
[null,null,"Ruth Johnson",0.28480784788477087,{"$f":"--(tbl_entries[[#This Row],[Random'#]]=MAX(tbl_entries[Random'#]))","v":0},{"$f":"tbl_entries[[#This Row],[SimWin]]+tbl_entries[[#This Row],[Total Wins]]","v":412},412]
[null,null,"Sara Bennett",0.2243078883820071,{"$f":"--(tbl_entries[[#This Row],[Random'#]]=MAX(tbl_entries[Random'#]))","v":0},{"$f":"tbl_entries[[#This Row],[SimWin]]+tbl_entries[[#This Row],[Total Wins]]","v":383},383]
[null,null,"Scott Alexander",0.9167392055106024,{"$f":"--(tbl_entries[[#This Row],[Random'#]]=MAX(tbl_entries[Random'#]))","v":0},{"$f":"tbl_entries[[#This Row],[SimWin]]+tbl_entries[[#This Row],[Total Wins]]","v":395},395]
[null,null,"Tammy Bryant",0.7667880840932112,{"$f":"--(tbl_entries[[#This Row],[Random'#]]=MAX(tbl_entries[Random'#]))","v":0},{"$f":"tbl_entries[[#This Row],[SimWin]]+tbl_entries[[#This Row],[Total Wins]]","v":363},363]
[null,null,"Timothy Thomas",0.51193973101910595,{"$f":"--(tbl_entries[[#This Row],[Random'#]]=MAX(tbl_entries[Random'#]))","v":0},{"$f":"tbl_entries[[#This Row],[SimWin]]+tbl_entries[[#This Row],[Total Wins]]","v":415},415]
[null,null,"Virginia Stewart",0.44468739053890771,{"$f":"--(tbl_entries[[#This Row],[Random'#]]=MAX(tbl_entries[Random'#]))","v":0},{"$f":"tbl_entries[[#This Row],[SimWin]]+tbl_entries[[#This Row],[Total Wins]]","v":429},429]
[null,null,"Wanda Wright",{"$f":"RAND()","v":0.90795207798620992},{"$f":"--(tbl_entries[[#This Row],[Random'#]]=MAX(tbl_entries[Random'#]))","v":0},{"$f":"tbl_entries[[#This Row],[SimWin]]+tbl_entries[[#This Row],[Total Wins]]","v":440},440]